[Event "Late-Titled-Tuesday-Blitz-March-19-2024"]
[Site "Chess.com"]
[Date "2024.03.19"]
[Round "3"]
[White "jocmil"]
[Black "FabianoCaruana"]
[Result "0-1"]
[WhiteElo "2753"]
[BlackElo "3075"]
[TimeControl "180+1"]
[EndTime "14:27:25 PDT"]
[Termination "FabianoCaruana won by resignation"]

1. d4 {[%clk 0:03:00.9]} 1... Nf6 {[%clk 0:02:59.2]} 2. Bg5 {[%clk 0:03:00.9]}
2... Nc6 {[%clk 0:02:57.3]} 3. Nc3 {[%clk 0:02:59]} 3... d5 {[%clk 0:02:52.9]}
4. Nf3 {[%clk 0:02:58.8]} 4... Bf5 {[%clk 0:02:47.8]} 5. e3 {[%clk 0:02:57.5]}
5... e6 {[%clk 0:02:47.1]} 6. Bb5 {[%clk 0:02:56.7]} 6... a6 {[%clk 0:02:39.5]}
7. Bxc6+ {[%clk 0:02:56.2]} 7... bxc6 {[%clk 0:02:40.4]} 8. Ne5 {[%clk
0:02:56.1]} 8... c5 {[%clk 0:02:37.1]} 9. g4 {[%clk 0:02:55.8]} 9... Bg6 {[%clk
0:02:34.1]} 10. h4 {[%clk 0:02:55.7]} 10... h6 {[%clk 0:02:29]} 11. Nxg6 {[%clk
0:02:53.6]} 11... fxg6 {[%clk 0:02:29.9]} 12. Bf4 {[%clk 0:02:54.2]} 12... c4
{[%clk 0:02:23.7]} 13. a3 {[%clk 0:02:45.4]} 13... Bd6 {[%clk 0:02:21.9]} 14.
Ne2 {[%clk 0:02:43.8]} 14... O-O {[%clk 0:02:21]} 15. g5 {[%clk 0:02:37.9]}
15... hxg5 {[%clk 0:02:00.3]} 16. hxg5 {[%clk 0:02:25.4]} 16... Ne4 {[%clk
0:01:55.7]} 17. f3 {[%clk 0:02:16.7]} 17... Nxg5 {[%clk 0:01:49.8]} 18. Kf2
{[%clk 0:02:11.5]} 18... Nxf3 {[%clk 0:01:34.6]} 19. Kxf3 {[%clk 0:02:09.7]}
19... g5 {[%clk 0:01:34.8]} 20. Qg1 {[%clk 0:01:58.7]} 20... gxf4 {[%clk
0:01:33]} 21. Qg6 {[%clk 0:01:51.7]} 21... Qf6 {[%clk 0:01:13.5]} 22. Qxf6
{[%clk 0:01:36]} 22... Rxf6 {[%clk 0:01:14.4]} 23. exf4 {[%clk 0:01:35]} 23...
Bxf4 {[%clk 0:01:02.6]} 24. Nxf4 {[%clk 0:01:29.2]} 24... Raf8 {[%clk
0:01:02.8]} 25. Rh4 {[%clk 0:01:07.9]} 25... g5 {[%clk 0:01:00.8]} 26. Rg4
{[%clk 0:01:08.6]} 26... Rxf4+ {[%clk 0:01:00.6]} 27. Kg3 {[%clk 0:01:07.9]}
27... Rf3+ {[%clk 0:00:36.8]} 28. Kh2 {[%clk 0:01:06.7]} 28... R8f5 {[%clk
0:00:31.1]} 29. Rag1 {[%clk 0:01:05]} 29... Rf2+ {[%clk 0:00:31.1]} 30. R4g2
{[%clk 0:00:55.3]} 30... Kf7 {[%clk 0:00:25.4]} 31. Kh3 {[%clk 0:00:51.5]} 31...
Rxg2 {[%clk 0:00:24.5]} 32. Rxg2 {[%clk 0:00:52.4]} 32... Kg6 {[%clk 0:00:25]}
33. Re2 {[%clk 0:00:51.9]} 33... Kf6 {[%clk 0:00:24.9]} 34. b3 {[%clk
0:00:47.1]} 34... cxb3 {[%clk 0:00:24.3]} 35. cxb3 {[%clk 0:00:48]} 35... Rf3+
{[%clk 0:00:24.5]} 36. Kg4 {[%clk 0:00:47.4]} 36... Rf4+ {[%clk 0:00:24.9]} 37.
Kg3 {[%clk 0:00:47.5]} 37... Rxd4 {[%clk 0:00:25.8]} 38. Rc2 {[%clk 0:00:48.2]}
38... Rd3+ {[%clk 0:00:26]} 39. Kg4 {[%clk 0:00:48.9]} 39... Rxb3 {[%clk
0:00:26.1]} 40. Rxc7 {[%clk 0:00:49.6]} 40... Rxa3 {[%clk 0:00:26.4]} 0-1

[Event "Late-Titled-Tuesday-Blitz-March-19-2024"]
[Site "Chess.com"]
[Date "2024.03.19"]
[Round "3"]
[White "kleber2007"]
[Black "Dhaydon19"]
[Result "0-1"]
[WhiteElo "2491"]
[BlackElo "2664"]
[TimeControl "180+1"]
[EndTime "14:27:25 PDT"]
[Termination "Dhaydon19 won by resignation"]

1. Nf3 {[%clk 0:03:00.9]} 1... d5 {[%clk 0:02:59.6]} 2. g3 {[%clk 0:03:00.7]}
2... Nf6 {[%clk 0:03:00.2]} 3. Bg2 {[%clk 0:03:01]} 3... e6 {[%clk 0:03:00.2]}
4. O-O {[%clk 0:03:00.4]} 4... b6 {[%clk 0:03:00.7]} 5. c4 {[%clk 0:03:00.7]}
5... Bb7 {[%clk 0:03:01.1]} 6. cxd5 {[%clk 0:02:58.3]} 6... Bxd5 {[%clk
0:02:59.7]} 7. Nc3 {[%clk 0:02:57.4]} 7... Bb7 {[%clk 0:02:59.5]} 8. d4 {[%clk
0:02:57.3]} 8... Nbd7 {[%clk 0:02:59.6]} 9. Re1 {[%clk 0:02:55.6]} 9... Bb4
{[%clk 0:02:58.9]} 10. Bg5 {[%clk 0:02:43.1]} 10... O-O {[%clk 0:02:57.3]} 11.
e4 {[%clk 0:02:42.7]} 11... h6 {[%clk 0:02:56.6]} 12. Bxf6 {[%clk 0:02:42.4]}
12... Nxf6 {[%clk 0:02:56.4]} 13. Ne5 {[%clk 0:02:37.4]} 13... c5 {[%clk
0:02:45.3]} 14. a3 {[%clk 0:02:25.6]} 14... Bxc3 {[%clk 0:02:40.4]} 15. bxc3
{[%clk 0:02:26.5]} 15... Qc7 {[%clk 0:02:39]} 16. Ng4 {[%clk 0:02:21.4]} 16...
Nxg4 {[%clk 0:02:26.8]} 17. Qxg4 {[%clk 0:02:20.7]} 17... Rad8 {[%clk
0:02:23.2]} 18. Rad1 {[%clk 0:02:11.8]} 18... cxd4 {[%clk 0:02:20.8]} 19. cxd4
{[%clk 0:02:12.7]} 19... Qc3 {[%clk 0:02:20.1]} 20. d5 {[%clk 0:02:12.1]} 20...
exd5 {[%clk 0:02:16.6]} 21. exd5 {[%clk 0:02:11.7]} 21... Qxa3 {[%clk
0:02:16.6]} 22. Be4 {[%clk 0:01:59.8]} 22... Qd6 {[%clk 0:02:13.4]} 23. h4
{[%clk 0:01:57.6]} 23... Bc8 {[%clk 0:02:06.2]} 24. Qf3 {[%clk 0:01:48.2]} 24...
f5 {[%clk 0:02:04.7]} 25. Bb1 {[%clk 0:01:42.2]} 25... f4 {[%clk 0:02:02.4]} 26.
g4 {[%clk 0:01:29.4]} 26... Rfe8 {[%clk 0:02:01.8]} 27. Qd3 {[%clk 0:01:19.5]}
27... Bxg4 {[%clk 0:01:55.5]} 28. Qh7+ {[%clk 0:01:10.4]} 28... Kf7 {[%clk
0:01:54.3]} 29. h5 {[%clk 0:00:45.2]} 29... Rxe1+ {[%clk 0:00:45.4]} 30. Rxe1
{[%clk 0:00:44.6]} 30... Rf8 {[%clk 0:00:40.4]} 31. Bg6+ {[%clk 0:00:33.4]}
31... Kf6 {[%clk 0:00:39.9]} 32. Be8 {[%clk 0:00:33.5]} 32... Bf5 {[%clk
0:00:38.9]} 33. Re6+ {[%clk 0:00:29.5]} 33... Qxe6 {[%clk 0:00:37.6]} 34. dxe6
{[%clk 0:00:28]} 34... Bxh7 {[%clk 0:00:36.3]} 0-1

[Event "Late-Titled-Tuesday-Blitz-March-19-2024"]
[Site "Chess.com"]
[Date "2024.03.19"]
[Round "3"]
[White "FredddieCroderg"]
[Black "YoreDea"]
[Result "1-0"]
[WhiteElo "2279"]
[BlackElo "2575"]
[TimeControl "180+1"]
[EndTime "14:27:25 PDT"]
[Termination "FredddieCroderg won by resignation"]

1. e4 {[%clk 0:03:00.9]} 1... c5 {[%clk 0:02:59.7]} 2. Bc4 {[%clk 0:02:59.7]}
2... e6 {[%clk 0:02:59.4]} 3. Qf3 {[%clk 0:02:58.6]} 3... Nc6 {[%clk 0:02:56.7]}
4. d3 {[%clk 0:02:58]} 4... Ne5 {[%clk 0:02:56]} 5. Qg3 {[%clk 0:02:57.9]} 5...
Nxc4 {[%clk 0:02:55.7]} 6. dxc4 {[%clk 0:02:58.4]} 6... d5 {[%clk 0:02:51.7]} 7.
exd5 {[%clk 0:02:56.5]} 7... exd5 {[%clk 0:02:51.8]} 8. cxd5 {[%clk 0:02:56.5]}
8... Qxd5 {[%clk 0:02:51]} 9. Nc3 {[%clk 0:02:54]} 9... Qc6 {[%clk 0:02:43.9]}
10. Be3 {[%clk 0:02:44.5]} 10... Nf6 {[%clk 0:02:32.5]} 11. O-O-O {[%clk
0:02:43.9]} 11... Be6 {[%clk 0:02:28.9]} 12. Nf3 {[%clk 0:02:41.5]} 12... Ne4
{[%clk 0:02:16.5]} 13. Nxe4 {[%clk 0:02:40]} 13... Qxe4 {[%clk 0:02:16.4]} 14.
Ng5 {[%clk 0:02:34]} 14... Qc6 {[%clk 0:02:01.9]} 15. Nxe6 {[%clk 0:02:33.5]}
15... fxe6 {[%clk 0:02:02.3]} 16. Rhe1 {[%clk 0:02:28.9]} 16... Rd8 {[%clk
0:01:45.1]} 17. Rxd8+ {[%clk 0:02:27]} 17... Kxd8 {[%clk 0:01:45.4]} 18. Rd1+
{[%clk 0:02:26.4]} 18... Kc8 {[%clk 0:01:45]} 19. Bg5 {[%clk 0:02:08]} 19... b6
{[%clk 0:01:39.4]} 20. Rd8+ {[%clk 0:01:57.7]} 20... Kb7 {[%clk 0:01:39.3]} 21.
Qf3 {[%clk 0:01:41.4]} 21... Qxf3 {[%clk 0:01:31.4]} 22. gxf3 {[%clk 0:01:41]}
22... g6 {[%clk 0:01:31.2]} 23. Kd1 {[%clk 0:01:33]} 23... Kc6 {[%clk
0:01:26.9]} 24. Bf6 {[%clk 0:01:29.9]} 24... Kc7 {[%clk 0:01:02.6]} 25. Ra8
{[%clk 0:01:22.2]} 25... Rg8 {[%clk 0:00:59.6]} 26. Be7 {[%clk 0:01:13.3]} 26...
Bxe7 {[%clk 0:00:51.9]} 27. Rxg8 {[%clk 0:01:11.8]} 27... Bf6 {[%clk 0:00:50.2]}
28. b3 {[%clk 0:01:04.8]} 28... a5 {[%clk 0:00:50.3]} 29. Rf8 {[%clk 0:01:02.3]}
29... Be5 {[%clk 0:00:48.8]} 30. Rf7+ {[%clk 0:01:01.7]} 30... Kd6 {[%clk
0:00:49.1]} 31. Rxh7 {[%clk 0:01:01.6]} 31... g5 {[%clk 0:00:49.7]} 32. Ke2
{[%clk 0:01:00.1]} 32... b5 {[%clk 0:00:48.7]} 33. h4 {[%clk 0:00:59.7]} 33...
gxh4 {[%clk 0:00:48.2]} 34. Rxh4 {[%clk 0:00:59.3]} 34... Bb2 {[%clk 0:00:44.6]}
35. f4 {[%clk 0:00:57]} 35... Kd5 {[%clk 0:00:44.5]} 36. Rh5+ {[%clk 0:00:45.4]}
36... Kd6 {[%clk 0:00:40.3]} 37. Kd3 {[%clk 0:00:42.5]} 37... Bc1 {[%clk
0:00:38.7]} 38. Ke4 {[%clk 0:00:39.8]} 1-0

[Event "Late-Titled-Tuesday-Blitz-March-19-2024"]
[Site "Chess.com"]
[Date "2024.03.19"]
[Round "3"]
[White "Yeritsyaan"]
[Black "Sargsyan_Shant"]
[Result "0-1"]
[WhiteElo "2665"]
[BlackElo "2935"]
[TimeControl "180+1"]
[EndTime "14:27:27 PDT"]
[Termination "Sargsyan_Shant won by resignation"]

1. c4 {[%clk 0:02:59.2]} 1... g6 {[%clk 0:03:00]} 2. Nc3 {[%clk 0:02:59.5]} 2...
Bg7 {[%clk 0:02:58.2]} 3. e4 {[%clk 0:02:59.4]} 3... c5 {[%clk 0:02:58.6]} 4. d3
{[%clk 0:02:59.3]} 4... Nc6 {[%clk 0:02:59]} 5. Be3 {[%clk 0:03:00]} 5... d6
{[%clk 0:02:59.6]} 6. g3 {[%clk 0:03:00.7]} 6... h5 {[%clk 0:02:59.6]} 7. h4
{[%clk 0:02:54.8]} 7... Rb8 {[%clk 0:02:57.1]} 8. Bg2 {[%clk 0:02:52.9]} 8... a6
{[%clk 0:02:57.7]} 9. Nge2 {[%clk 0:02:50.2]} 9... b5 {[%clk 0:02:57.5]} 10. b3
{[%clk 0:02:41.8]} 10... Nf6 {[%clk 0:02:48.9]} 11. O-O {[%clk 0:02:38.7]} 11...
Ng4 {[%clk 0:02:49.1]} 12. Bf4 {[%clk 0:02:33.5]} 12... b4 {[%clk 0:02:47.6]}
13. Nd5 {[%clk 0:02:30.9]} 13... e6 {[%clk 0:02:44.4]} 14. Ne3 {[%clk
0:02:26.3]} 14... Bxa1 {[%clk 0:02:44.2]} 15. Qxa1 {[%clk 0:02:26.2]} 15... e5
{[%clk 0:02:44.6]} 16. Nd5 {[%clk 0:02:09.8]} 16... f6 {[%clk 0:02:33.9]} 17.
Bd2 {[%clk 0:02:07]} 17... Be6 {[%clk 0:02:34.2]} 18. f4 {[%clk 0:02:03.7]}
18... Bxd5 {[%clk 0:02:29.2]} 19. exd5 {[%clk 0:02:03.1]} 19... Nd4 {[%clk
0:02:29.8]} 20. Nxd4 {[%clk 0:02:01.4]} 20... exd4 {[%clk 0:02:30.1]} 21. f5
{[%clk 0:01:55.2]} 21... Rg8 {[%clk 0:02:01]} 22. Bf4 {[%clk 0:01:43.3]} 22...
g5 {[%clk 0:01:52.2]} 23. hxg5 {[%clk 0:01:40.4]} 23... fxg5 {[%clk 0:01:52.1]}
24. Bd2 {[%clk 0:01:40.4]} 24... Qf6 {[%clk 0:01:49.2]} 25. Qd1 {[%clk
0:01:31.4]} 25... Kd7 {[%clk 0:01:32]} 26. Be4 {[%clk 0:01:04.5]} 26... Rh8
{[%clk 0:01:27.3]} 27. a3 {[%clk 0:01:01.8]} 27... Ne3 {[%clk 0:01:22.2]} 28.
Bxe3 {[%clk 0:00:37]} 28... dxe3 {[%clk 0:01:23.1]} 29. axb4 {[%clk 0:00:35]}
29... Rxb4 {[%clk 0:01:23.5]} 30. Qe2 {[%clk 0:00:30.7]} 30... a5 {[%clk
0:01:20.1]} 31. Qa2 {[%clk 0:00:30.1]} 31... a4 {[%clk 0:01:20.6]} 32. bxa4
{[%clk 0:00:29.9]} 32... Rb2 {[%clk 0:01:16.1]} 33. Qa3 {[%clk 0:00:23.5]} 33...
Qd4 {[%clk 0:01:13.5]} 34. Kh1 {[%clk 0:00:18.8]} 34... h4 {[%clk 0:01:11]} 35.
g4 {[%clk 0:00:18.5]} 35... Qe5 {[%clk 0:01:10.9]} 36. Bg2 {[%clk 0:00:17.6]}
36... h3 {[%clk 0:01:11.1]} 0-1

[Event "Late-Titled-Tuesday-Blitz-March-19-2024"]
[Site "Chess.com"]
[Date "2024.03.19"]
[Round "3"]
[White "rychessmaster1"]
[Black "jefferyx"]
[Result "0-1"]
[WhiteElo "2759"]
[BlackElo "3099"]
[TimeControl "180+1"]
[EndTime "14:27:31 PDT"]
[Termination "jefferyx won by resignation"]

1. Nf3 {[%clk 0:03:00.9]} 1... c5 {[%clk 0:02:59.5]} 2. c4 {[%clk 0:03:00.9]}
2... Nf6 {[%clk 0:02:59.5]} 3. Nc3 {[%clk 0:03:00.2]} 3... d5 {[%clk 0:02:59.8]}
4. cxd5 {[%clk 0:03:00.5]} 4... Nxd5 {[%clk 0:03:00.7]} 5. d4 {[%clk 0:03:01]}
5... Nxc3 {[%clk 0:02:46.6]} 6. bxc3 {[%clk 0:03:01.9]} 6... g6 {[%clk 0:02:47]}
7. e3 {[%clk 0:03:01.1]} 7... Bg7 {[%clk 0:02:46.3]} 8. Bb5+ {[%clk 0:02:57.2]}
8... Bd7 {[%clk 0:02:46.2]} 9. Be2 {[%clk 0:02:57.4]} 9... O-O {[%clk 0:02:46]}
10. O-O {[%clk 0:02:57.2]} 10... Bc6 {[%clk 0:02:45.2]} 11. Ba3 {[%clk
0:02:48.7]} 11... b6 {[%clk 0:02:44.8]} 12. dxc5 {[%clk 0:02:27.9]} 12... Bxc3
{[%clk 0:02:44.5]} 13. Rc1 {[%clk 0:02:28.1]} 13... Bf6 {[%clk 0:02:44.7]} 14.
Nd4 {[%clk 0:02:23.7]} 14... Bxd4 {[%clk 0:02:30.7]} 15. exd4 {[%clk 0:02:22.1]}
15... b5 {[%clk 0:02:30.7]} 16. Bf3 {[%clk 0:02:15.6]} 16... e6 {[%clk
0:02:29.2]} 17. Bb2 {[%clk 0:02:08.5]} 17... Bd5 {[%clk 0:02:28.3]} 18. a4
{[%clk 0:02:00.9]} 18... bxa4 {[%clk 0:02:24.9]} 19. Ra1 {[%clk 0:01:56.9]}
19... Nc6 {[%clk 0:02:24.5]} 20. Rxa4 {[%clk 0:01:34.7]} 20... a5 {[%clk
0:02:24.3]} 21. Bc3 {[%clk 0:01:19.3]} 21... Qd7 {[%clk 0:02:11.3]} 22. Be2
{[%clk 0:01:08.9]} 22... Rfb8 {[%clk 0:02:10.9]} 23. Qa1 {[%clk 0:01:09.1]}
23... Qc7 {[%clk 0:01:58.4]} 24. h3 {[%clk 0:00:57]} 24... Qb7 {[%clk
0:01:45.8]} 25. Bd3 {[%clk 0:00:27.8]} 25... Bxg2 {[%clk 0:01:26.6]} 26. Rb1
{[%clk 0:00:26.6]} 26... Nb4 {[%clk 0:01:27]} 27. Bxb4 {[%clk 0:00:26.5]} 27...
axb4 {[%clk 0:01:26.8]} 28. Rxa8 {[%clk 0:00:21.5]} 28... Rxa8 {[%clk
0:01:27.7]} 29. Qb2 {[%clk 0:00:21.5]} 29... Bxh3 {[%clk 0:01:26.6]} 30. Bf1
{[%clk 0:00:17.1]} 30... Bxf1 {[%clk 0:01:26.3]} 31. Kxf1 {[%clk 0:00:16.4]}
31... Qh1+ {[%clk 0:01:21.9]} 32. Ke2 {[%clk 0:00:17]} 32... Qe4+ {[%clk
0:01:22.5]} 33. Kf1 {[%clk 0:00:17.6]} 33... Rd8 {[%clk 0:00:49.3]} 34. Rd1
{[%clk 0:00:15.2]} 34... Rd5 {[%clk 0:00:46.3]} 35. Qe2 {[%clk 0:00:09.2]} 0-1

[Event "Late-Titled-Tuesday-Blitz-March-19-2024"]
[Site "Chess.com"]
[Date "2024.03.19"]
[Round "3"]
[White "TenisMaster"]
[Black "Alex_Banzea"]
[Result "1-0"]
[WhiteElo "2860"]
[BlackElo "2590"]
[TimeControl "180+1"]
[EndTime "14:27:31 PDT"]
[Termination "TenisMaster won on time"]

1. e4 {[%clk 0:03:00.9]} 1... c6 {[%clk 0:03:00.1]} 2. d4 {[%clk 0:03:00.4]}
2... d5 {[%clk 0:03:01]} 3. e5 {[%clk 0:03:01]} 3... c5 {[%clk 0:02:59.8]} 4.
dxc5 {[%clk 0:03:00.6]} 4... Nc6 {[%clk 0:02:56.8]} 5. f4 {[%clk 0:02:59.8]}
5... Nh6 {[%clk 0:02:56.7]} 6. Nf3 {[%clk 0:02:50.1]} 6... Bg4 {[%clk
0:02:56.9]} 7. Be3 {[%clk 0:02:49.3]} 7... g5 {[%clk 0:02:54.5]} 8. fxg5 {[%clk
0:02:44.2]} 8... Nf5 {[%clk 0:02:55]} 9. Bf2 {[%clk 0:02:42.7]} 9... e6 {[%clk
0:02:46.9]} 10. Nbd2 {[%clk 0:02:34.8]} 10... h6 {[%clk 0:02:30]} 11. g6 {[%clk
0:02:19.7]} 11... fxg6 {[%clk 0:02:30.4]} 12. h3 {[%clk 0:02:17.3]} 12... Bxf3
{[%clk 0:02:30.3]} 13. Qxf3 {[%clk 0:02:17.7]} 13... Nxe5 {[%clk 0:02:07.6]} 14.
Qb3 {[%clk 0:02:12.3]} 14... Qc7 {[%clk 0:01:39.5]} 15. g4 {[%clk 0:02:10.2]}
15... Ne7 {[%clk 0:01:22.8]} 16. Bb5+ {[%clk 0:02:09.7]} 16... N5c6 {[%clk
0:01:10.4]} 17. O-O-O {[%clk 0:01:59.2]} 17... Bg7 {[%clk 0:01:09.9]} 18. Rhe1
{[%clk 0:01:56]} 18... O-O {[%clk 0:01:09.7]} 19. Bg3 {[%clk 0:01:51.9]} 19...
e5 {[%clk 0:00:27.7]} 20. Nf3 {[%clk 0:01:08.2]} 20... Kh7 {[%clk 0:00:27]} 21.
Bxc6 {[%clk 0:01:02.8]} 21... Nxc6 {[%clk 0:00:21.7]} 22. Rxd5 {[%clk
0:01:02.5]} 22... Qa5 {[%clk 0:00:16.9]} 23. Rd7 {[%clk 0:00:57.1]} 23... Rad8
{[%clk 0:00:06.4]} 24. Rxd8 {[%clk 0:00:52]} 24... Rxd8 {[%clk 0:00:07.3]} 25.
a3 {[%clk 0:00:50.6]} 25... Nd4 {[%clk 0:00:07.2]} 26. Nxd4 {[%clk 0:00:44.5]}
26... Rxd4 {[%clk 0:00:07.5]} 27. Qxb7 {[%clk 0:00:40.1]} 27... Qxc5 {[%clk
0:00:06.1]} 28. Bxe5 {[%clk 0:00:38.3]} 1-0

[Event "Late-Titled-Tuesday-Blitz-March-19-2024"]
[Site "Chess.com"]
[Date "2024.03.19"]
[Round "3"]
[White "jstopa4"]
[Black "Irishchessman16"]
[Result "0-1"]
[WhiteElo "2733"]
[BlackElo "2535"]
[TimeControl "180+1"]
[EndTime "14:27:31 PDT"]
[Termination "Irishchessman16 won by resignation"]

1. e4 {[%clk 0:03:00]} 1... c5 {[%clk 0:02:59.6]} 2. Nf3 {[%clk 0:02:59.8]} 2...
e6 {[%clk 0:02:59.8]} 3. g3 {[%clk 0:02:55.6]} 3... d5 {[%clk 0:02:57.9]} 4. Nc3
{[%clk 0:02:53.1]} 4... Nf6 {[%clk 0:02:47.2]} 5. exd5 {[%clk 0:02:52.3]} 5...
exd5 {[%clk 0:02:46.9]} 6. Bg2 {[%clk 0:02:52.7]} 6... Qe7+ {[%clk 0:02:43]} 7.
Qe2 {[%clk 0:02:49.7]} 7... Qxe2+ {[%clk 0:02:40.3]} 8. Nxe2 {[%clk 0:02:48.8]}
8... Bf5 {[%clk 0:02:34.3]} 9. d3 {[%clk 0:02:48.9]} 9... Nc6 {[%clk 0:02:32.6]}
10. O-O {[%clk 0:02:49]} 10... Be7 {[%clk 0:02:18.8]} 11. a3 {[%clk 0:02:48.1]}
11... O-O {[%clk 0:02:10.8]} 12. Re1 {[%clk 0:02:47.1]} 12... Rfe8 {[%clk
0:02:10.3]} 13. Bd2 {[%clk 0:02:34.9]} 13... Rad8 {[%clk 0:02:06.5]} 14. h3
{[%clk 0:02:31.5]} 14... h6 {[%clk 0:02:05.4]} 15. g4 {[%clk 0:02:30]} 15... Bh7
{[%clk 0:02:02.9]} 16. g5 {[%clk 0:02:19.1]} 16... hxg5 {[%clk 0:02:00.1]} 17.
Nxg5 {[%clk 0:02:19.5]} 17... Bf5 {[%clk 0:01:50.4]} 18. Ng3 {[%clk 0:02:04.5]}
18... Bg6 {[%clk 0:01:50.2]} 19. f4 {[%clk 0:01:54.6]} 19... Nd4 {[%clk
0:01:46.3]} 20. Rac1 {[%clk 0:01:54.1]} 20... Bd6 {[%clk 0:01:39.1]} 21. Rxe8+
{[%clk 0:01:43.7]} 21... Rxe8 {[%clk 0:01:38.5]} 22. Kf2 {[%clk 0:01:41.9]}
22... c4 {[%clk 0:01:34.7]} 23. dxc4 {[%clk 0:01:29]} 23... dxc4 {[%clk
0:01:34.5]} 24. Nf3 {[%clk 0:01:03.8]} 24... Nxc2 {[%clk 0:01:24.5]} 25. f5
{[%clk 0:00:55.8]} 25... Bxg3+ {[%clk 0:01:22.5]} 26. Kxg3 {[%clk 0:00:56.4]}
26... Bxf5 {[%clk 0:01:21.9]} 27. Nh4 {[%clk 0:00:51.6]} 27... Bd3 {[%clk
0:01:19.6]} 28. Bxb7 {[%clk 0:00:50]} 28... Rb8 {[%clk 0:01:16.5]} 29. Bc6
{[%clk 0:00:43.6]} 29... Rxb2 {[%clk 0:01:15]} 30. Bc3 {[%clk 0:00:42.5]} 30...
Rb3 {[%clk 0:01:07.7]} 31. Bxf6 {[%clk 0:00:42.5]} 31... gxf6 {[%clk 0:01:03.7]}
32. Kf4 {[%clk 0:00:42.6]} 32... Nxa3 {[%clk 0:00:51.8]} 33. Rg1+ {[%clk
0:00:41.5]} 33... Kf8 {[%clk 0:00:51.9]} 34. Re1 {[%clk 0:00:39.5]} 34... c3
{[%clk 0:00:48.4]} 35. Re8+ {[%clk 0:00:38.3]} 35... Kg7 {[%clk 0:00:48.6]} 36.
Bd5 {[%clk 0:00:26.7]} 36... Rb4+ {[%clk 0:00:47.1]} 37. Ke3 {[%clk 0:00:27]}
37... c2 {[%clk 0:00:43.5]} 38. Kd2 {[%clk 0:00:26.9]} 38... Rxh4 {[%clk
0:00:41.6]} 0-1

[Event "Late-Titled-Tuesday-Blitz-March-19-2024"]
[Site "Chess.com"]
[Date "2024.03.19"]
[Round "3"]
[White "ViktoriyaTarasova"]
[Black "Jimonios"]
[Result "0-1"]
[WhiteElo "2320"]
[BlackElo "2607"]
[TimeControl "180+1"]
[EndTime "14:27:41 PDT"]
[Termination "Jimonios won by checkmate"]

1. d4 {[%clk 0:03:00.9]} 1... Nf6 {[%clk 0:02:49.6]} 2. c4 {[%clk 0:03:00.7]}
2... e6 {[%clk 0:02:50.5]} 3. Nc3 {[%clk 0:03:00.8]} 3... b6 {[%clk 0:02:51.4]}
4. e4 {[%clk 0:02:58.5]} 4... d6 {[%clk 0:02:52.3]} 5. Bd3 {[%clk 0:02:57.7]}
5... Bb7 {[%clk 0:02:52.6]} 6. Nge2 {[%clk 0:02:57.2]} 6... g6 {[%clk
0:02:52.6]} 7. O-O {[%clk 0:02:57.2]} 7... Bg7 {[%clk 0:02:52.8]} 8. h3 {[%clk
0:02:54.8]} 8... Nbd7 {[%clk 0:02:52.2]} 9. Be3 {[%clk 0:02:55.4]} 9... e5
{[%clk 0:02:50.9]} 10. d5 {[%clk 0:02:50.7]} 10... Nc5 {[%clk 0:02:51.2]} 11.
Bc2 {[%clk 0:02:51]} 11... a5 {[%clk 0:02:50.9]} 12. f4 {[%clk 0:02:50.3]} 12...
exf4 {[%clk 0:02:50.5]} 13. Bd4 {[%clk 0:02:34]} 13... Nh5 {[%clk 0:02:48.1]}
14. Bxg7 {[%clk 0:02:12.5]} 14... Nxg7 {[%clk 0:02:49]} 15. Qd4 {[%clk
0:02:12.1]} 15... O-O {[%clk 0:02:46.9]} 16. e5 {[%clk 0:01:57.5]} 16... g5
{[%clk 0:02:13.6]} 17. exd6 {[%clk 0:01:42.5]} 17... Qxd6 {[%clk 0:02:11.7]} 18.
Nb5 {[%clk 0:01:36.4]} 18... Qd7 {[%clk 0:02:05.3]} 19. Nec3 {[%clk 0:01:33.1]}
19... Rae8 {[%clk 0:01:40.8]} 20. Rae1 {[%clk 0:01:25]} 20... Nh5 {[%clk
0:01:09.5]} 21. Bd1 {[%clk 0:00:46]} 21... Ng3 {[%clk 0:01:07.3]} 22. Rxe8
{[%clk 0:00:16.4]} 22... Rxe8 {[%clk 0:01:08.2]} 23. Bg4 {[%clk 0:00:09.8]}
23... f5 {[%clk 0:01:03.5]} 24. Qf6 {[%clk 0:00:06.2]} 24... fxg4 {[%clk
0:00:59.8]} 25. Qxg5+ {[%clk 0:00:06.3]} 25... Qg7 {[%clk 0:00:57.6]} 26. Qxg7+
{[%clk 0:00:05.9]} 26... Kxg7 {[%clk 0:00:58.5]} 27. Rxf4 {[%clk 0:00:06.3]}
27... h5 {[%clk 0:00:49.8]} 28. hxg4 {[%clk 0:00:05.6]} 28... h4 {[%clk
0:00:50]} 29. g5 {[%clk 0:00:05.8]} 29... Re1+ {[%clk 0:00:46.3]} 30. Kf2 {[%clk
0:00:05.3]} 30... Nd3+ {[%clk 0:00:46.9]} 31. Kf3 {[%clk 0:00:05]} 31... Rf1+
{[%clk 0:00:45.8]} 32. Kg4 {[%clk 0:00:05.1]} 32... Rxf4+ {[%clk 0:00:45.7]} 33.
Kh3 {[%clk 0:00:04.4]} 33... Nf1 {[%clk 0:00:44.7]} 34. Nxc7 {[%clk 0:00:04.7]}
34... Nf2# {[%clk 0:00:44.7]} 0-1

[Event "Late-Titled-Tuesday-Blitz-March-19-2024"]
[Site "Chess.com"]
[Date "2024.03.19"]
[Round "3"]
[White "prochn"]
[Black "Englishman_18"]
[Result "1-0"]
[WhiteElo "2451"]
[BlackElo "2251"]
[TimeControl "180+1"]
[EndTime "14:27:42 PDT"]
[Termination "prochn won by resignation"]

1. d4 {[%clk 0:03:00.9]} 1... Nf6 {[%clk 0:02:54.6]} 2. c4 {[%clk 0:03:00.1]}
2... g6 {[%clk 0:02:53.2]} 3. g3 {[%clk 0:03:00.5]} 3... d5 {[%clk 0:02:50]} 4.
cxd5 {[%clk 0:02:58.8]} 4... Nxd5 {[%clk 0:02:49.9]} 5. Bg2 {[%clk 0:02:57.9]}
5... Bg7 {[%clk 0:02:50.3]} 6. Nf3 {[%clk 0:02:56.4]} 6... O-O {[%clk
0:02:49.5]} 7. O-O {[%clk 0:02:56.3]} 7... Nc6 {[%clk 0:02:48.6]} 8. h3 {[%clk
0:02:43.1]} 8... Re8 {[%clk 0:02:46.7]} 9. e4 {[%clk 0:02:42]} 9... Nb6 {[%clk
0:02:45]} 10. d5 {[%clk 0:02:36.4]} 10... Na5 {[%clk 0:02:34.4]} 11. Nc3 {[%clk
0:02:31.4]} 11... c6 {[%clk 0:02:33]} 12. Nd4 {[%clk 0:02:09.5]} 12... cxd5
{[%clk 0:02:31.9]} 13. exd5 {[%clk 0:02:09.5]} 13... Nac4 {[%clk 0:02:23.3]} 14.
b3 {[%clk 0:02:06.1]} 14... Nd6 {[%clk 0:02:22.8]} 15. Bb2 {[%clk 0:02:04.4]}
15... Bd7 {[%clk 0:02:17.8]} 16. a4 {[%clk 0:02:03.9]} 16... a5 {[%clk
0:01:57.4]} 17. Re1 {[%clk 0:02:04.1]} 17... Rc8 {[%clk 0:01:56.9]} 18. Qd2
{[%clk 0:01:57.4]} 18... Rc7 {[%clk 0:01:56.4]} 19. Ncb5 {[%clk 0:01:46.3]}
19... Nxb5 {[%clk 0:01:48]} 20. axb5 {[%clk 0:01:46.6]} 20... Rc5 {[%clk
0:01:45]} 21. Ba3 {[%clk 0:01:37]} 21... Rxd5 {[%clk 0:01:44.7]} 22. Bxd5 {[%clk
0:01:33.8]} 22... Nxd5 {[%clk 0:01:45.6]} 23. Kh2 {[%clk 0:01:19.2]} 23... e5
{[%clk 0:01:38.5]} 24. Nf3 {[%clk 0:01:11.7]} 24... e4 {[%clk 0:01:15.5]} 25.
Qxd5 {[%clk 0:00:37.7]} 25... exf3 {[%clk 0:01:12.8]} 26. Rad1 {[%clk
0:00:23.3]} 26... Rxe1 {[%clk 0:01:11]} 27. Rxe1 {[%clk 0:00:23.5]} 27... Qb6
{[%clk 0:01:03.4]} 28. Bc5 {[%clk 0:00:21.3]} 28... Qxb5 {[%clk 0:01:00.7]} 29.
Re7 {[%clk 0:00:19.6]} 29... Bf8 {[%clk 0:00:27]} 30. Qxf7+ {[%clk 0:00:18.4]}
1-0